fUST/lending_fUST_20250219
["ID","MTS","AMOUNT","RATE_DAILY","PERIOD"]
[353564907,1739916642424,-500.0,0.00014273,2]
[353564908,1739916642434,-977.95,0.00014273,2]
[353564909,1739916642443,-981.37,0.00014273,2]
[353564910,1739916642452,-500.0,0.00014273,2]
[353564911,1739916642462,-500.0,0.00014273,2]
[353564912,1739916642471,-564.75,0.00014273,2]
[353564913,1739916642481,-1138.19,0.00014273,2]
[353564914,1739916642490,-500.0,0.00014273,2]
[353564915,1739916642500,-789.94,0.00014273,2]
[353564916,1739916642509,-185.57354345,0.00014273,2]
[353564917,1739916642518,-500.0,0.00014273,2]
[353564918,1739916642528,-500.0,0.00014273,2]
[353564919,1739916642537,-500.0,0.00014273,2]
[353564921,1739916642546,-652.07,0.00014273,2]
[353564923,1739916642555,-500.0,0.00014273,2]
[353564924,1739916642564,-500.0,0.00014273,2]
[353564926,1739916642573,-500.0,0.00014273,2]
[353564927,1739916642583,-500.0,0.00014273,2]
[353564930,1739916642592,-500.0,0.00014273,2]
[353564933,1739916642601,-500.0,0.00014273,2]
[353564936,1739916642611,-769.61,0.00014273,2]
[353564939,1739916642620,-500.0,0.00014273,2]
[353564941,1739916642630,-1897.62,0.00014273,2]
[353564944,1739916642641,-993.16,0.00014273,2]
[353564947,1739916642655,-715.19,0.00014273,2]
[353564949,1739916642670,-500.0,0.00014273,2]
[353564951,1739916642681,-500.0,0.00014273,2]
[353564953,1739916642690,-500.0,0.00014273,2]
[353564955,1739916642699,-845.29,0.00014273,2]
[353564957,1739916642708,-500.0,0.00014273,2]
[353564959,1739916642717,-8254.89,0.00014273,2]
[353564960,1739916642726,-1330.1,0.00014273,2]
[353564962,1739916642735,-528.91,0.00014273,2]
[353564964,1739916642744,-553.81,0.00014273,2]
[353564966,1739916642753,-500.0,0.00014273,2]
[353564968,1739916642762,-1784.67,0.00014273,2]
[353564970,1739916642771,-534.58,0.00014273,2]
[353564972,1739916642780,-1587.19,0.00014273,2]
[353564974,1739916642789,-2220.53,0.00014273,2]
[353564976,1739916642799,-1108.63,0.00014273,2]
[353564977,1739916642808,-594.11,0.00014273,2]
[353564978,1739916642817,-870.43,0.00014273,2]
[353564979,1739916642826,-1695.98,0.00014273,2]
[353564980,1739916642835,-500.0,0.00014273,2]
[353564981,1739916642848,-1567.55,0.00014273,2]
[353564982,1739916642857,-3331.96,0.00014273,2]
[353564983,1739916642866,-22230.83,0.00014273,2]
[353564984,1739916642876,-500.0,0.00014273,2]
[353564985,1739916642885,-853.99,0.00014273,2]
[353564986,1739916642895,-500.0,0.00014273,2]
[353564988,1739916642905,-687.31,0.00014273,2]
[353564989,1739916642914,-500.0,0.00014273,2]
[353564990,1739916642923,-500.0,0.00014273,2]
[353564991,1739916642934,-954.77,0.00014273,2]
[353564992,1739916642943,-500.0,0.00014273,2]
[353564993,1739916642953,-500.0,0.00014273,2]
[353564995,1739916642963,-799.04,0.00014273,2]
[353564997,1739916642972,-7501.03,0.00014273,2]
[353564999,1739916642980,-852.41,0.00014273,2]
[353565001,1739916642990,-500.0,0.00014356,2]
[353565003,1739916642999,-500.0,0.00014356,2]
[353565005,1739916643009,-977.95,0.00014356,2]
[353565007,1739916643019,-981.37,0.00014356,2]
[353565009,1739916643029,-153.92668326,0.00014356,2]
[353565011,1739916643038,-500.0,0.00014356,2]
[353565013,1739916643047,-564.75,0.00014356,2]
[353565015,1739916643059,-1138.19,0.00014356,2]
[353565017,1739916643072,-500.0,0.00014356,2]
[353565019,1739916643082,-789.94,0.00014356,2]
[353565021,1739916643098,-500.0,0.00014356,2]
[353565023,1739916643107,-500.0,0.00014356,2]
[353565025,1739916643116,-500.0,0.00014356,2]
[353565027,1739916643126,-652.07,0.00014356,2]
[353565029,1739916643135,-500.0,0.00014356,2]
[353565031,1739916643146,-229.7638614,0.00014356,2]
[353565032,1739916643156,-500.0,0.00014356,2]
[353565033,1739916643165,-421.61068976,0.00014356,2]
[353565034,1739916643174,-500.0,0.00014356,2]
[353565035,1739916643184,-769.61,0.00014356,2]
[353565036,1739916643193,-500.0,0.00014356,2]
[353565037,1739916643202,-1897.62,0.00014356,2]
[353565038,1739916643212,-993.16,0.00014356,2]
[353565039,1739916643221,-715.19,0.00014356,2]
[353565040,1739916643231,-349.2684964,0.00014356,2]
[353565041,1739916643240,-845.29,0.00014356,2]
[353565042,1739916643250,-500.0,0.00014356,2]
[353565043,1739916643260,-8254.89,0.00014356,2]
[353565044,1739916643270,-1330.1,0.00014356,2]
[353565045,1739916643279,-528.91,0.00014356,2]
[353565046,1739916643288,-553.81,0.00014356,2]
[353565047,1739916643297,-500.0,0.00014356,2]
[353565048,1739916643306,-1784.67,0.00014356,2]
[353565049,1739916643315,-534.58,0.00014356,2]
[353565050,1739916643325,-1587.19,0.00014356,2]
[353565051,1739916643334,-2220.53,0.00014356,2]
[353565052,1739916643343,-1108.63,0.00014356,2]
[353565053,1739916643354,-594.11,0.00014356,2]
[353565054,1739916643363,-870.43,0.00014356,2]
[353565055,1739916643372,-1695.98,0.00014356,2]
[353565056,1739916643381,-500.0,0.00014356,2]
[353565057,1739916643391,-1567.55,0.00014356,2]
[353565058,1739916643400,-3331.96,0.00014356,2]
[353565059,1739916643409,-22230.83,0.00014356,2]
[353565060,1739916643418,-853.99,0.00014356,2]
[353565061,1739916643429,-500.0,0.00014356,2]
[353565062,1739916643438,-687.31,0.00014356,2]
[353565063,1739916643447,-500.0,0.00014356,2]
[353565064,1739916643457,-954.77,0.00014356,2]
[353565065,1739916643466,-500.0,0.00014356,2]
[353565066,1739916643475,-500.0,0.00014356,2]
[353565067,1739916643485,-799.04,0.00014356,2]
[353565068,1739916643494,-7501.03,0.00014356,2]
[353565069,1739916643503,-852.41,0.00014356,2]
[353565070,1739916643512,-369.25014492,0.00014438,2]
[353565071,1739916643522,-500.0,0.00014438,2]
[353565072,1739916643532,-977.95,0.00014438,2]
[353565073,1739916643541,-981.37,0.00014438,2]
[353565074,1739916643550,-500.0,0.00014438,2]
[353565075,1739916643560,-564.75,0.00014438,2]
[353565076,1739916643569,-1138.19,0.00014438,2]
[353565077,1739916643579,-500.0,0.00014438,2]
[353565078,1739916643589,-789.94,0.00014438,2]
[353565079,1739916643598,-500.0,0.00014438,2]
[353565080,1739916643608,-500.0,0.00014438,2]
[353565081,1739916643617,-500.0,0.00014438,2]
[353565082,1739916643627,-652.07,0.00014438,2]
[353565083,1739916643636,-153.86,0.00014438,2]
[353565084,1739916643645,-500.0,0.00014438,2]
[353565085,1739916643655,-500.0,0.00014438,2]
[353565086,1739916643664,-769.61,0.00014438,2]
[353565087,1739916643674,-500.0,0.00014438,2]
[353565088,1739916643683,-1897.62,0.00014438,2]
[353565089,1739916643693,-993.16,0.00014438,2]
[353565090,1739916643702,-715.19,0.00014438,2]
[353565091,1739916643711,-845.29,0.00014438,2]
[353565092,1739916643721,-500.0,0.00014438,2]
[353565093,1739916643730,-8254.89,0.00014438,2]
[353565094,1739916643739,-1330.1,0.00014438,2]
[353565095,1739916643749,-528.91,0.00014438,2]
[353565096,1739916643759,-553.81,0.00014438,2]
[353565097,1739916643768,-500.0,0.00014438,2]
[353565098,1739916643778,-1784.67,0.00014438,2]
[353565099,1739916643787,-534.58,0.00014438,2]
[353565100,1739916643797,-1587.19,0.00014438,2]
[353565101,1739916643806,-2220.53,0.00014438,2]
[353565102,1739916643816,-1108.63,0.00014438,2]
[353565103,1739916643825,-594.11,0.00014438,2]
[353565104,1739916643834,-870.43,0.00014438,2]
[353565105,1739916643846,-1695.98,0.00014438,2]
[353565106,1739916643856,-500.0,0.00014438,2]
[353565107,1739916643866,-1567.55,0.00014438,2]
[353565108,1739916643877,-3331.96,0.00014438,2]
[353565109,1739916643887,-22230.83,0.00014438,2]
[353565110,1739916643897,-853.99,0.00014438,2]
[353565111,1739916643906,-500.0,0.00014438,2]
[353565112,1739916643915,-687.31,0.00014438,2]
[353565113,1739916643925,-500.0,0.00014438,2]
[353565114,1739916643936,-954.77,0.00014438,2]
[353565115,1739916643946,-500.0,0.00014438,2]
[353565116,1739916643955,-500.0,0.00014438,2]
[353565117,1739916643964,-799.04,0.00014438,2]
[353565118,1739916643974,-7501.03,0.00014438,2]
[353565119,1739916643983,-500.0,0.0001452,2]
[353565120,1739916643993,-977.95,0.0001452,2]
[353565121,1739916644002,-981.37,0.0001452,2]
[353565122,1739916644011,-500.0,0.0001452,2]
[353565123,1739916644021,-564.75,0.0001452,2]
[353565124,1739916644030,-1138.19,0.0001452,2]
[353565125,1739916644040,-500.0,0.0001452,2]
[353565126,1739916644049,-789.94,0.0001452,2]
[353565127,1739916644058,-500.0,0.0001452,2]
[353565128,1739916644068,-500.0,0.0001452,2]
[353565129,1739916644077,-500.0,0.0001452,2]
[353565130,1739916644164,-652.07,0.0001452,2]
[353565131,1739916644186,-500.0,0.0001452,2]
[353565132,1739916644196,-500.0,0.0001452,2]
[353565133,1739916644206,-769.61,0.0001452,2]
[353565134,1739916644215,-500.0,0.0001452,2]
[353565135,1739916644225,-1897.62,0.0001452,2]
[353565136,1739916644235,-993.16,0.0001452,2]
[353565137,1739916644244,-715.19,0.0001452,2]
[353565138,1739916644253,-845.29,0.0001452,2]
[353565139,1739916644263,-500.0,0.0001452,2]
[353565140,1739916644272,-2249.83353578,0.0001452,2]
[353565141,1739916644407,-1363.6172978,0.0001452,2]
[353565142,1739916644510,-1709.19320502,0.0001452,2]
[353565143,1739916644527,-338.35662537,0.00014438,2]
[353565144,1739916644663,-500.0,0.00013698,2]
[353565145,1739916644673,-500.0,0.00013698,2]
[353565146,1739916644683,-500.0,0.0001378,2]
[353565147,1739916644692,-514.05337463,0.00014438,2]
[353565148,1739916644702,-1225.94662537,0.0001452,2]
[353565149,1739916644713,-1706.29933603,0.0001452,2]
[353565150,1739916644723,-1330.1,0.0001452,2]
[353565151,1739916644733,-528.91,0.0001452,2]
[353565152,1739916644742,-553.81,0.0001452,2]
[353565153,1739916644753,-500.0,0.0001452,2]
[353565154,1739916644762,-1126.19089765,0.0001452,2]
[353565155,1739916644780,-658.47910235,0.0001452,2]
[353565156,1739916644790,-133.4070782,0.0001452,2]
[353565157,1739916644801,-401.1729218,0.0001452,2]
[353565158,1739916644811,-1587.19,0.0001452,2]
[353565159,1739916644821,-2220.53,0.0001452,2]
[353565160,1739916644831,-1108.63,0.0001452,2]
[353565161,1739916644842,-594.11,0.0001452,2]
[353565162,1739916644853,-870.43,0.0001452,2]
[353565163,1739916644862,-1695.98,0.0001452,2]
[353565164,1739916644871,-500.0,0.0001452,2]
[353565165,1739916644882,-1567.55,0.0001452,2]
[353565166,1739916644892,-3331.96,0.0001452,2]
[353565167,1739916644902,-22230.83,0.0001452,2]
[353565168,1739916644911,-853.99,0.0001452,2]
[353565169,1739916644921,-500.0,0.0001452,2]
[353565170,1739916644931,-687.31,0.0001452,2]
[353565171,1739916644940,-500.0,0.0001452,2]
[353565172,1739916644950,-954.77,0.0001452,2]
[353565173,1739916644960,-500.0,0.0001452,2]
[353565174,1739916644972,-500.0,0.0001452,2]
[353565175,1739916644983,-799.04,0.0001452,2]
[353565176,1739916644993,-7501.03,0.0001452,2]
[353565177,1739916645003,-852.41,0.0001452,2]
[353565178,1739916645013,-1000.0,0.00014587,2]
[353565179,1739916645023,-500.0,0.00014602,2]
[353565180,1739916645033,-977.95,0.00014602,2]
[353565181,1739916645043,-981.37,0.00014602,2]
[353565182,1739916645053,-500.0,0.00014602,2]
[353565183,1739916645062,-564.75,0.00014602,2]
[353565184,1739916645072,-1138.19,0.00014602,2]
[353565185,1739916645082,-500.0,0.00014602,2]
[353565186,1739916645091,-789.94,0.00014602,2]
[353565187,1739916645101,-500.0,0.00014602,2]
[353565188,1739916645110,-184.67105678,0.00014602,2]
[353565189,1739916645120,-287.41394962,0.00014602,2]
[353565190,1739916645129,-652.07,0.00014602,2]
[353565191,1739916645139,-500.0,0.00014602,2]
[353565192,1739916645149,-500.0,0.00014602,2]
[353565193,1739916645159,-769.61,0.00014602,2]
[353565194,1739916645168,-500.0,0.00014602,2]
[353565195,1739916645178,-1897.62,0.00014602,2]
[353565196,1739916645188,-993.16,0.00014602,2]
[353565197,1739916645197,-715.19,0.00014602,2]
[353565198,1739916645207,-845.29,0.00014602,2]
[353565199,1739916645217,-500.0,0.00014602,2]
[353565200,1739916645227,-8254.89,0.00014602,2]
[353565201,1739916645237,-1330.1,0.00014602,2]
[353565202,1739916645246,-528.91,0.00014602,2]
[353565203,1739916645255,-553.81,0.00014602,2]
[353565204,1739916645266,-500.0,0.00014602,2]
[353565205,1739916645276,-1784.67,0.00014602,2]
[353565206,1739916645286,-534.58,0.00014602,2]
[353565207,1739916645295,-1587.19,0.00014602,2]
[353565208,1739916645306,-2220.53,0.00014602,2]
[353565209,1739916645316,-1108.63,0.00014602,2]
[353565210,1739916645326,-594.11,0.00014602,2]
[353565211,1739916645336,-870.43,0.00014602,2]
[353565212,1739916645346,-1695.98,0.00014602,2]
[353565213,1739916645356,-500.0,0.00014602,2]
[353565214,1739916645366,-1567.55,0.00014602,2]
[353565215,1739916645376,-3331.96,0.00014602,2]
[353565216,1739916645386,-22230.83,0.00014602,2]
[353565217,1739916645397,-853.99,0.00014602,2]
[353565218,1739916645407,-500.0,0.00014602,2]
[353565219,1739916645416,-687.31,0.00014602,2]
[353565220,1739916645426,-500.0,0.00014602,2]
[353565221,1739916645437,-954.77,0.00014602,2]
[353565222,1739916645447,-500.0,0.00014602,2]
[353565224,1739916645457,-500.0,0.00014602,2]
[353565226,1739916645467,-799.04,0.00014602,2]
[353565227,1739916645476,-7501.03,0.00014602,2]
[353565228,1739916645486,-852.41,0.00014602,2]
[353565229,1739916645496,-500.0,0.00014626,2]
[353565230,1739916645507,-500.0,0.00014684,2]
[353565231,1739916645516,-977.95,0.00014684,2]
[353565232,1739916645526,-981.37,0.00014684,2]
[353565233,1739916645535,-500.0,0.00014684,2]
[353565234,1739916645545,-564.75,0.00014684,2]
[353565235,1739916645555,-1138.19,0.00014684,2]
[353565236,1739916645565,-500.0,0.00014684,2]
[353565237,1739916645575,-789.94,0.00014684,2]
[353565238,1739916645585,-322.25837774,0.00014684,2]
[353565239,1739916645595,-652.07,0.00014684,2]
[353565240,1739916645605,-500.0,0.00014684,2]
[353565241,1739916645615,-500.0,0.00014684,2]
[353565242,1739916645625,-769.61,0.00014684,2]
[353565243,1739916645635,-500.0,0.00014684,2]
[353565244,1739916645643,-1897.62,0.00014684,2]
[353565245,1739916645652,-993.16,0.00014684,2]
[353565246,1739916645663,-715.19,0.00014684,2]
[353565247,1739916645672,-845.29,0.00014684,2]
[353565248,1739916645681,-500.0,0.00014684,2]
[353565249,1739916645691,-8254.89,0.00014684,2]
[353565250,1739916645700,-1330.1,0.00014684,2]
[353565251,1739916645710,-528.91,0.00014684,2]
[353565252,1739916645719,-553.81,0.00014684,2]
[353565254,1739916645729,-500.0,0.00014684,2]
[353565255,1739916645739,-1784.67,0.00014684,2]
[353565256,1739916645748,-534.58,0.00014684,2]
[353565257,1739916645758,-1587.19,0.00014684,2]
[353565258,1739916645767,-2220.53,0.00014684,2]
[353565259,1739916645777,-1108.63,0.00014684,2]
[353565260,1739916645787,-594.11,0.00014684,2]
[353565261,1739916645796,-870.43,0.00014684,2]
[353565262,1739916645806,-1695.98,0.00014684,2]
[353565263,1739916645816,-500.0,0.00014684,2]
[353565264,1739916645826,-1567.55,0.00014684,2]
[353565265,1739916645837,-3331.96,0.00014684,2]
[353565266,1739916645849,-22230.83,0.00014684,2]
[353565267,1739916645860,-853.99,0.00014684,2]
[353565268,1739916645869,-500.0,0.00014684,2]
[353565269,1739916645879,-687.31,0.00014684,2]
[353565270,1739916645891,-500.0,0.00014684,2]
[353565271,1739916645901,-954.77,0.00014684,2]
[353565272,1739916645912,-500.0,0.00014684,2]
[353565273,1739916645922,-500.0,0.00014684,2]
[353565274,1739916645932,-799.04,0.00014684,2]
[353565275,1739916645942,-7501.03,0.00014684,2]
[353565276,1739916645952,-852.41,0.00014684,2]
[353565277,1739916645961,-1000.0,0.00014721,2]
[353565278,1739916645971,-1000.42245772,0.00014721,2]
[353565279,1739916645981,-1000.0,0.00014721,2]
[353565280,1739916645990,-208.23727636,0.00014739,2]
[353565281,1739916645999,-500.0,0.00014767,2]
[353565282,1739916646009,-977.95,0.00014767,2]
[353565283,1739916646019,-981.37,0.00014767,2]
[353565284,1739916646029,-500.0,0.00014767,2]
[353565285,1739916646039,-564.75,0.00014767,2]
[353565286,1739916646048,-1138.19,0.00014767,2]
[353565287,1739916646058,-400.22816265,0.00014767,2]
[353565288,1739916646068,-789.94,0.00014767,2]
[353565289,1739916646078,-652.07,0.00014767,2]
[353565290,1739916646087,-500.0,0.00014767,2]
[353565291,1739916646098,-500.0,0.00014767,2]
[353565292,1739916646108,-769.61,0.00014767,2]
[353565293,1739916646117,-167.25029595,0.00014767,2]
[353565294,1739916646128,-1897.62,0.00014767,2]
[353565295,1739916646137,-993.16,0.00014767,2]
[353565296,1739916646232,-715.19,0.00014767,2]
[353565297,1739916646242,-845.29,0.00014767,2]
[353565298,1739916646251,-500.0,0.00014767,2]
[353565299,1739916646261,-8254.89,0.00014767,2]
[353565300,1739916646271,-1330.1,0.00014767,2]
[353565301,1739916646281,-528.91,0.00014767,2]
[353565302,1739916646291,-553.81,0.00014767,2]
[353565303,1739916646301,-500.0,0.00014767,2]
[353565304,1739916646311,-1784.67,0.00014767,2]
[353565305,1739916646320,-534.58,0.00014767,2]
[353565306,1739916646330,-1587.19,0.00014767,2]
[353565307,1739916646340,-2220.53,0.00014767,2]
[353565308,1739916646350,-1108.63,0.00014767,2]
[353565309,1739916646360,-594.11,0.00014767,2]
[353565310,1739916646370,-870.43,0.00014767,2]
[353565311,1739916646379,-1695.98,0.00014767,2]
[353565312,1739916646389,-408.33689258,0.00014767,2]
[353565313,1739916646399,-1567.55,0.00014767,2]
[353565314,1739916646409,-3331.96,0.00014767,2]
[353565315,1739916646418,-22230.83,0.00014767,2]
[353565316,1739916646428,-853.99,0.00014767,2]
[353565317,1739916646438,-195.2508049,0.00014767,2]
[353565318,1739916646448,-687.31,0.00014767,2]
[353565319,1739916646457,-500.0,0.00014767,2]
[353565320,1739916646467,-954.77,0.00014767,2]
[353565321,1739916646477,-500.0,0.00014767,2]
[353565322,1739916646487,-500.0,0.00014767,2]
[353565323,1739916646496,-799.04,0.00014767,2]
[353565324,1739916646506,-7501.03,0.00014767,2]
[353565325,1739916646515,-852.41,0.00014767,2]
[353565326,1739916646525,-396.0,0.00014829,2]
[353565327,1739916646535,-500.0,0.00014849,2]
[353565328,1739916646544,-977.95,0.00014849,2]
[353565329,1739916646554,-981.37,0.00014849,2]
[353565330,1739916646564,-500.0,0.00014849,2]
[353565331,1739916646574,-564.75,0.00014849,2]
[353565332,1739916646584,-1138.19,0.00014849,2]
[353565333,1739916646593,-789.94,0.00014849,2]
[353565334,1739916646602,-652.07,0.00014849,2]
[353565335,1739916646612,-500.0,0.00014849,2]
[353565336,1739916646622,-500.0,0.00014849,2]
[353565337,1739916646631,-769.61,0.00014849,2]
[353565338,1739916646641,-1897.62,0.00014849,2]
[353565339,1739916646650,-715.19,0.00014849,2]
[353565340,1739916646660,-993.16,0.00014849,2]
[353565341,1739916646669,-845.29,0.00014849,2]
[353565342,1739916646679,-500.0,0.00014849,2]
[353565343,1739916646688,-8254.89,0.00014849,2]
[353565344,1739916646698,-1330.1,0.00014849,2]
[353565345,1739916646707,-528.91,0.00014849,2]
[353565346,1739916646718,-553.81,0.00014849,2]
[353565347,1739916646728,-500.0,0.00014849,2]
[353565348,1739916646738,-1784.67,0.00014849,2]
[353565349,1739916646747,-534.58,0.00014849,2]
[353565350,1739916646757,-1587.19,0.00014849,2]
[353565351,1739916646767,-2220.53,0.00014849,2]
[353565352,1739916646776,-1108.63,0.00014849,2]
[353565353,1739916646785,-594.11,0.00014849,2]
[353565354,1739916646794,-870.43,0.00014849,2]
[353565355,1739916646804,-1695.98,0.00014849,2]
[353565356,1739916646813,-1567.55,0.00014849,2]
[353565357,1739916646823,-3331.96,0.00014849,2]
[353565358,1739916646832,-22230.83,0.00014849,2]
[353565359,1739916646844,-853.99,0.00014849,2]
[353565360,1739916646855,-687.31,0.00014849,2]
[353565361,1739916646864,-500.0,0.00014849,2]
[353565362,1739916646874,-954.77,0.00014849,2]
[353565363,1739916646884,-530.90878976,0.00014849,2]
[353565364,1739916646894,-500.0,0.00014849,2]
[353565365,1739916646904,-799.04,0.00014849,2]
[353565366,1739916646915,-7501.03,0.00014849,2]
[353565367,1739916646924,-852.41,0.00014849,2]
[353565368,1739916646934,-406.45143443,0.00014851,2]
[353565369,1739916646943,-500.0,0.00014873,2]
[353565370,1739916646952,-500.0,0.00014873,2]
[353565371,1739916646963,-152.16137129,0.00014873,2]
[353565372,1739916646972,-275.15755177,0.00014873,2]
[353565373,1739916646982,-500.0,0.00014873,2]
[353565374,1739916646991,-252555.227982,0.000149,2]
[353565375,1739916647002,-500.0,0.00014931,2]
[353565376,1739916647012,-977.95,0.00014931,2]
[353565377,1739916647021,-981.37,0.00014931,2]
[353565378,1739916647031,-500.0,0.00014931,2]
[353565379,1739916647040,-564.75,0.00014931,2]
[353565380,1739916647051,-1138.19,0.00014931,2]
[353565381,1739916647060,-789.94,0.00014931,2]
[353565382,1739916647070,-652.07,0.00014931,2]
[353565383,1739916647080,-500.0,0.00014931,2]
[353565384,1739916647090,-500.0,0.00014931,2]
[353565385,1739916647099,-769.61,0.00014931,2]
[353565386,1739916647109,-1897.62,0.00014931,2]
[353565387,1739916647119,-993.16,0.00014931,2]
[353565388,1739916647129,-715.19,0.00014931,2]
[353565389,1739916647138,-845.29,0.00014931,2]
[353565390,1739916647148,-153.6185149,0.00014931,2]
[353565391,1739916647158,-8254.89,0.00014931,2]
[353565392,1739916647168,-1330.1,0.00014931,2]
[353565393,1739916647178,-528.91,0.00014931,2]
[353565394,1739916647187,-553.81,0.00014931,2]
[353565395,1739916647197,-500.0,0.00014931,2]
[353565396,1739916647206,-1784.67,0.00014931,2]
[353565397,1739916647216,-534.58,0.00014931,2]
[353565398,1739916647228,-1587.19,0.00014931,2]
[353565399,1739916647237,-2220.53,0.00014931,2]
[353565400,1739916647247,-1108.63,0.00014931,2]
[353565401,1739916647257,-594.11,0.00014931,2]
[353565402,1739916647267,-870.43,0.00014931,2]
[353565403,1739916647276,-1695.98,0.00014931,2]
[353565404,1739916647285,-1567.55,0.00014931,2]
[353565405,1739916647295,-3331.96,0.00014931,2]
[353565406,1739916647304,-22230.83,0.00014931,2]
[353565407,1739916647314,-853.99,0.00014931,2]
[353565408,1739916647324,-687.31,0.00014931,2]
[353565409,1739916647334,-500.0,0.00014931,2]
[353565410,1739916647345,-954.77,0.00014931,2]
[353565411,1739916647354,-500.0,0.00014931,2]
[353565412,1739916647363,-799.04,0.00014931,2]
[353565413,1739916647372,-7501.03,0.00014931,2]
[353565414,1739916647381,-852.41,0.00014931,2]
[353565415,1739916647390,-500.0,0.00015013,2]
[353565416,1739916647400,-977.95,0.00015013,2]
[353565417,1739916647410,-981.37,0.00015013,2]
[353565418,1739916647420,-500.0,0.00015013,2]
[353565419,1739916647430,-564.75,0.00015013,2]
[353565420,1739916647439,-1138.19,0.00015013,2]
[353565421,1739916647449,-789.94,0.00015013,2]
[353565422,1739916647458,-652.07,0.00015013,2]
[353565423,1739916647468,-189.44164715,0.00015013,2]
[353565424,1739916647477,-500.0,0.00015013,2]
[353565425,1739916647486,-769.61,0.00015013,2]
[353565426,1739916647495,-1897.62,0.00015013,2]
[353565427,1739916647504,-715.19,0.00015013,2]
[353565428,1739916647514,-993.16,0.00015013,2]
[353565429,1739916647524,-845.29,0.00015013,2]
[353565430,1739916647533,-8254.89,0.00015013,2]
[353565431,1739916647543,-1330.1,0.00015013,2]
[353565432,1739916647553,-528.91,0.00015013,2]
[353565433,1739916647562,-553.81,0.00015013,2]
[353565434,1739916647571,-500.0,0.00015013,2]
[353565435,1739916647581,-1784.67,0.00015013,2]
[353565436,1739916647591,-534.58,0.00015013,2]
[353565437,1739916647600,-1587.19,0.00015013,2]
[353565438,1739916647610,-2220.53,0.00015013,2]
[353565439,1739916647619,-1108.63,0.00015013,2]
[353565440,1739916647629,-594.11,0.00015013,2]
[353565441,1739916647638,-870.43,0.00015013,2]
[353565442,1739916647647,-1695.98,0.00015013,2]
[353565443,1739916647657,-1567.55,0.00015013,2]
[353565444,1739916647666,-3331.96,0.00015013,2]
[353565445,1739916647676,-22230.83,0.00015013,2]
[353565446,1739916647686,-853.99,0.00015013,2]
[353565447,1739916647695,-687.31,0.00015013,2]
[353565448,1739916647705,-500.0,0.00015013,2]
[353565449,1739916647715,-954.77,0.00015013,2]
[353565450,1739916647724,-500.0,0.00015013,2]
[353565451,1739916647734,-799.04,0.00015013,2]
[353565452,1739916647743,-7501.03,0.00015013,2]
[353565453,1739916647753,-852.41,0.00015013,2]
[353565454,1739916647763,-187.505,0.00015078,2]
[353565455,1739916647774,-154.519,0.00015078,2]
[353565456,1739916647783,-150.0,0.00015078,2]
[353565457,1739916647793,-253.402,0.00015078,2]
[353565458,1739916647803,-150.0,0.00015078,2]
[353565459,1739916647812,-538.0,0.00015078,2]